bitfinex-derivatives/quotes_SOLF0:USTF0_20241216
["timestamp","ask_amount","ask_price","bid_price","bid_amount"]
[1734387120508,2.2815,219.1,219.06,9.33142813]
[1734387120805,13.55189352,219.1,219.06,9.33142813]
[1734387121105,11.27039352,219.09,219.06,2.2818]
[1734387121308,9.33112813,219.1,219.06,2.2818]
[1734387121509,2.2815,219.1,219.06,2.2818]
[1734387131824,2.2819,219.06,219.02,2.2822]
[1734387132112,7.04962813,219.06,218.97,3.6319]
[1734387132310,7.04962813,219.06,218.98,8.27258673]
[1734387132507,11.26554331,219.09,218.99,8.27258673]
[1734387132705,2.2819,219.06,219.02,2.2822]
[1734387133504,2.282,219.05,219.01,2.2823]
[1734387134815,2.2821,219.04,219.0,2.2825]
[1734387136308,2.12,219.06,218.97,1.5119]
[1734387136509,2.12,219.06,218.86,4.5679]
[1734387136716,2.12,219.06,218.98,4.89757568]
[1734387136907,2.12,219.06,218.87,2.12]
[1734387137113,2.2826,218.99,218.94,2.2831]
[1734387137309,2.2826,218.99,218.95,4.89897603]
[1734387137519,2.2826,218.99,218.94,2.2831]
[1734387138526,2.2828,218.97,218.92,2.2832]
[1734387138817,2.12,219.0,218.93,4.89539271]
[1734387139020,2.12,219.0,218.88,3.6745]
[1734387139225,2.283,218.95,218.89,4.89662784]
[1734387139525,2.283,218.95,218.9,4.89662784]
[1734387139724,2.283,218.95,218.91,7.18002784]
[1734387139927,2.283,218.95,218.91,2.2834]
[1734387140521,2.283,218.95,218.92,2.2833]
[1734387140921,2.2829,218.97,218.92,2.2833]
[1734387141420,2.2829,218.97,218.93,2.2832]
[1734387141621,2.2829,218.97,218.94,13.72125094]
[1734387141925,4.4026,218.99,218.96,2.2829]
[1734387142519,2.2827,218.98,218.94,2.283]
[1734387142726,2.2827,218.98,218.95,5.27579275]
[1734387142920,2.2827,218.98,218.96,5.27579275]
[1734387143120,2.2827,218.98,218.94,2.283]
[1734387143722,2.2827,218.98,218.95,5.27220608]
[1734387143917,2.2827,218.98,218.94,2.283]
[1734387144226,2.2827,218.98,218.95,5.27154788]
[1734387144427,2.2827,218.98,218.94,2.283]
[1734387144622,2.2827,218.98,218.95,5.2698422]
[1734387144828,2.2827,218.98,218.96,5.2698422]
[1734387145028,2.2827,218.98,218.94,2.283]
[1734387145229,2.2827,218.98,218.95,5.26840069]
[1734387145428,2.2828,218.97,218.93,2.2832]
[1734387145629,2.2828,218.97,218.94,13.69284075]
[1734387145830,2.2828,218.97,218.95,5.26684446]
[1734387146037,2.2828,218.97,218.93,2.2832]
[1734387146330,2.2828,218.97,218.94,5.26362305]
[1734387146631,2.2828,218.97,218.95,5.26362305]
[1734387146826,2.2828,218.97,218.93,2.2832]
[1734387147026,2.2828,218.97,218.94,5.24579409]
[1734387147224,2.2828,218.97,218.93,2.2832]
[1734387147430,2.2828,218.97,218.94,5.24600481]
[1734387147728,2.2827,218.98,218.94,2.2831]
[1734387148130,2.2827,218.98,218.95,5.24566089]
[1734387148330,2.2827,218.98,218.94,2.2831]
[1734387148531,2.2827,218.98,218.95,5.24391519]
[1734387148731,2.2827,218.98,218.94,2.2831]
[1734387149126,2.2827,218.98,218.95,5.24245166]
[1734387149333,2.2827,218.98,218.94,2.2831]
[1734387150036,2.2827,218.98,218.95,5.24165523]
[1734387150231,2.2827,218.98,218.94,2.2831]
[1734387150430,2.2827,218.98,218.95,5.24163117]
[1734387150631,2.2827,218.98,218.94,2.2831]
[1734387151032,2.2827,218.98,218.95,5.24100431]
[1734387151234,2.2827,218.98,218.94,2.2831]
[1734387151733,2.12,218.99,218.96,2.2829]
[1734387156937,2.2823,219.02,218.97,2.2827]
[1734387157137,2.12,219.02,218.9,7.49327328]
[1734387157444,2.12,219.02,218.9,2.12]
[1734387157646,4.4023,219.03,218.98,2.2826]
[1734387158342,2.2824,219.01,218.97,2.2827]
[1734387159747,2.12,219.03,218.89,7.74799971]
[1734387159950,2.2823,219.02,218.98,2.2827]
[1734387170453,2.2823,219.02,218.99,5.24639806]
[1734387170657,2.2823,219.02,218.98,2.2827]
[1734387170857,2.2823,219.02,218.99,5.24662083]
[1734387171155,2.2823,219.02,218.98,2.2827]
[1734387171351,2.2823,219.02,218.99,5.24804018]
[1734387171554,2.2823,219.02,218.98,2.2827]
[1734387171752,2.2823,219.02,218.99,5.24839162]
[1734387171952,2.2823,219.02,218.98,2.2827]
[1734387172256,2.2823,219.02,218.99,5.24826855]
[1734387172455,2.2823,219.02,218.98,2.2827]
[1734387172663,2.2823,219.02,218.99,5.24894175]
[1734387172956,2.2823,219.02,218.98,2.2827]
[1734387173160,2.2823,219.02,218.99,5.24912038]
[1734387173358,2.2823,219.02,218.98,2.2827]
[1734387173659,2.2823,219.02,218.99,5.25097057]
[1734387173859,2.2823,219.02,218.98,2.2827]
[1734387174162,2.2823,219.02,218.99,5.25105633]
[1734387174362,2.2823,219.02,219.0,5.25105633]
[1734387174562,2.2823,219.02,218.98,2.2827]
[1734387174763,2.2823,219.02,218.99,5.25247304]
[1734387174966,2.2823,219.02,219.0,5.25247304]
[1734387175257,2.2823,219.02,218.98,2.2827]
[1734387175464,2.2823,219.02,218.99,5.25442193]
[1734387175663,2.2823,219.02,219.0,5.25442193]
[1734387175863,2.2823,219.02,218.98,2.2827]
[1734387176159,2.2823,219.02,218.99,5.25468601]
[1734387176366,2.2823,219.02,219.0,5.25468601]
[1734387176663,2.2823,219.02,219.01,5.25468601]
[1734387176866,2.12,219.02,219.01,5.25468601]
[1734387177266,1.5113,219.07,219.01,5.25468601]
[1734387177569,2.2821,219.04,219.02,5.25571669]
[1734387177760,2.12,219.06,218.95,7.13804445]
[1734387177957,2.2822,219.03,218.99,2.2826]
[1734387178163,2.2822,219.03,219.0,13.66678087]
[1734387178365,2.2822,219.03,218.99,2.2826]
[1734387178366,2.2822,219.03,219.01,5.25645418]
[1734387178666,2.2822,219.03,219.02,5.25645418]
[1734387181165,4.4021,219.04,219.02,5.25645418]
[1734387181370,4.4021,219.04,219.03,5.25645418]
[1734387181959,4.4021,219.04,219.0,2.2825]
[1734387182164,4.4021,219.04,219.01,5.26085363]
[1734387182367,4.4021,219.04,219.02,5.26085363]
[1734387182669,4.4021,219.04,219.03,5.26036045]
[1734387182866,4.4021,219.04,219.0,2.2825]
[1734387183066,4.4021,219.04,219.01,5.26051845]
[1734387183370,4.4021,219.04,219.02,5.26051845]
[1734387183572,4.4021,219.04,219.0,2.2825]
[1734387183760,4.4021,219.04,219.01,5.25961599]
[1734387183965,4.4021,219.04,219.02,5.25961599]
[1734387184172,4.4021,219.04,219.03,5.25961599]
[1734387184763,4.4021,219.04,219.03,5.25846604]
[1734387186268,2.2821,219.04,219.03,5.25846604]
[1734387188163,2.2821,219.04,218.99,2.2826]
[1734387188569,2.2821,219.04,219.0,5.25734808]
[1734387188769,2.2821,219.04,219.01,13.6683624]
[1734387189072,2.2821,219.04,219.02,13.66819052]
[1734387189275,2.2821,219.04,219.03,5.25734808]
[1734387191568,2.2821,219.04,219.03,5.25614585]
[1734387192174,2.2822,219.03,218.98,2.2827]
[1734387192365,2.2822,219.03,218.99,13.66769721]
[1734387192566,2.2822,219.03,219.0,13.66769721]
[1734387192766,2.2822,219.03,219.01,5.25680662]
[1734387192967,2.2822,219.03,219.02,5.25680662]
[1734387193171,2.2822,219.03,218.98,2.2827]
[1734387193467,2.2822,219.03,218.99,13.507938]
[1734387193670,2.2822,219.03,219.0,5.19536077]
[1734387193876,2.2822,219.03,219.01,5.19536077]
[1734387194075,2.2822,219.03,218.98,2.2827]
[1734387194276,2.2822,219.03,218.99,13.50788205]
[1734387194476,2.2822,219.03,219.0,5.19533925]
[1734387194677,2.2822,219.03,219.01,5.19533925]
[1734387194879,2.2822,219.03,218.98,2.2827]
[1734387195075,2.2822,219.03,218.99,13.50877017]
[1734387195275,2.2822,219.03,219.0,5.19568083]
[1734387195477,2.2822,219.03,219.01,5.19568083]
[1734387195677,2.2822,219.03,218.98,2.2827]
[1734387195979,2.2822,219.03,218.99,13.50945406]
[1734387196180,2.2822,219.03,219.0,5.19594387]
[1734387196382,2.2822,219.03,219.01,5.19594387]
[1734387196681,2.2822,219.03,218.98,2.2827]
[1734387196880,2.2822,219.03,218.99,13.51051018]
[1734387197081,2.2822,219.03,218.98,2.2827]
[1734387197082,2.2822,219.03,219.0,5.19635007]
[1734387197280,2.2822,219.03,219.01,5.19635007]
[1734387197577,2.2822,219.03,219.02,5.19661167]
[1734387198079,2.2822,219.03,218.98,2.2827]
[1734387198681,2.2822,219.03,218.99,13.51035965]
[1734387198882,2.2822,219.03,219.0,5.19629217]
[1734387199077,2.2822,219.03,219.01,5.19629217]
[1734387199283,2.2822,219.03,219.02,5.19675635]
[1734387201385,2.2822,219.03,219.02,5.19757153]
[1734387201677,4.4022,219.03,219.02,5.19757153]
[1734387204582,4.4022,219.03,218.99,2.2825]
[1734387204777,4.4022,219.03,219.0,13.34881407]
[1734387205083,4.4022,219.03,219.01,5.13415926]
[1734387205282,4.4022,219.03,219.02,5.13415926]
[1734387207583,4.4022,219.03,218.99,2.2825]
[1734387207786,4.4022,219.03,219.0,5.1350036]
[1734387207989,4.4022,219.03,218.98,2.2827]
[1734387207990,4.4022,219.03,219.01,5.1350036]
[1734387208180,4.4022,219.03,218.98,2.2827]
[1734387208577,4.4022,219.03,218.99,5.13525329]
[1734387208781,4.4022,219.03,219.0,5.13525329]
[1734387208987,4.4022,219.03,218.98,2.2827]
[1734387209186,4.4022,219.03,218.99,5.13546433]
[1734387209387,4.4022,219.03,219.0,5.13546433]
[1734387209589,4.4022,219.03,218.98,2.2827]
[1734387209888,2.2824,219.01,218.99,5.13559791]
[1734387210089,2.2824,219.01,219.0,5.13559791]
[1734387210985,2.2823,219.02,219.0,5.13559791]
[1734387211191,2.2823,219.02,219.01,5.13559791]
[1734387211788,11.27119178,219.04,219.02,2.2823]
[1734387212088,2.12,219.08,219.03,13.34950321]
[1734387212294,2.12,219.08,218.97,2.12]
[1734387212295,2.282,219.05,219.0,2.2824]
[1734387212594,2.282,219.05,219.01,13.34856257]
[1734387212785,2.282,219.05,219.02,13.34798625]
[1734387212992,4.402,219.05,219.03,5.13423197]
[1734387213195,4.402,219.05,219.01,2.2824]
[1734387213395,4.402,219.05,219.02,5.13410522]
[1734387213694,4.402,219.05,219.03,5.13410522]
[1734387213893,4.402,219.05,219.01,2.2824]
[1734387214090,4.402,219.05,219.02,5.13370151]
[1734387214287,4.402,219.05,219.03,5.13370151]
[1734387214497,4.402,219.05,219.01,2.2824]
[1734387214792,4.402,219.05,219.02,5.13350241]
[1734387214997,4.402,219.05,219.01,2.2824]
[1734387215192,4.402,219.05,219.02,5.13351593]
[1734387215390,4.402,219.05,219.03,5.13351593]
[1734387215700,4.402,219.05,219.01,2.2824]
[1734387215896,2.2821,219.04,219.02,5.13350772]
[1734387216201,2.2821,219.04,219.0,2.2824]
[1734387216202,2.2821,219.04,219.03,5.13353266]
[1734387216996,4.402,219.05,219.03,5.13353266]
[1734387217196,4.402,219.05,219.0,2.2824]
[1734387217397,4.402,219.05,219.01,13.34376732]
[1734387217596,4.402,219.05,219.02,5.1322182]
[1734387217799,4.402,219.05,219.0,2.2824]
[1734387218093,4.402,219.05,219.03,5.13215823]
[1734387218300,4.402,219.05,219.01,2.2824]
[1734387218496,4.402,219.05,219.02,5.13242473]
[1734387218696,4.402,219.05,219.03,5.13242473]
[1734387218897,4.402,219.05,219.01,2.2824]
[1734387219098,4.402,219.05,219.02,5.13136584]
[1734387219295,4.402,219.05,219.03,5.13136584]
[1734387219497,4.402,219.05,219.01,2.2824]
[1734387219694,4.402,219.05,219.02,5.13109481]
[1734387219896,4.402,219.05,219.03,5.13109481]
[1734387220098,4.402,219.05,219.01,2.2824]
[1734387220296,4.402,219.05,219.02,5.1301046]
[1734387220595,4.402,219.05,219.03,5.1301046]
[1734387220800,4.402,219.05,219.01,2.2824]
[1734387221000,4.402,219.05,219.02,5.129803]
[1734387221204,4.402,219.05,219.01,2.2824]
[1734387221205,4.402,219.05,219.03,5.129803]
[1734387221701,4.402,219.05,219.01,2.2824]
[1734387221898,4.402,219.05,219.02,5.12876575]
[1734387222102,4.402,219.05,219.01,2.2824]
[1734387222103,4.402,219.05,219.03,5.12876575]
[1734387222304,4.402,219.05,219.01,2.2824]
[1734387222603,4.402,219.05,219.02,5.12902028]
[1734387222804,4.402,219.05,219.03,5.12902028]
[1734387223004,4.402,219.05,219.01,2.2824]
[1734387223204,4.402,219.05,219.02,5.12920216]
[1734387223402,4.402,219.05,219.03,5.12920216]
[1734387223607,4.402,219.05,219.01,2.2824]
[1734387223901,4.402,219.05,219.02,5.12824747]
[1734387224097,4.402,219.05,219.03,5.12824747]
[1734387224297,4.402,219.05,219.01,2.2824]
[1734387224503,4.402,219.05,219.02,5.12785058]
[1734387224804,4.402,219.05,219.03,5.12785058]
[1734387225006,4.402,219.05,219.01,2.2824]
[1734387225207,4.402,219.05,219.02,5.13060272]
[1734387225507,4.402,219.05,219.03,5.13060272]
[1734387225702,4.402,219.05,219.01,2.2824]
[1734387225902,4.402,219.05,219.02,5.13070615]
[1734387226204,4.402,219.05,219.03,5.13070615]
[1734387226404,4.402,219.05,219.01,2.2824]
[1734387226405,4.402,219.05,219.04,5.12862639]
[1734387227701,2.12,219.05,219.04,5.12862639]
[1734387227897,2.12,219.05,219.04,5.12931719]
[1734387228206,2.12,219.05,219.01,2.2824]
[1734387228403,11.18023396,219.08,219.05,2.2819]
[1734387228701,7.67842515,219.09,219.06,5.12915624]
[1734387228899,2.2817,219.08,219.0,2.2824]
[1734387229107,13.45995278,219.08,219.01,18.24745063]
[1734387229306,2.2817,219.08,219.02,13.33154301]
[1734387229610,2.2817,219.08,219.04,2.282]
[1734387229808,2.2817,219.08,219.05,5.12751654]
[1734387230104,2.2817,219.08,219.06,5.12751654]
[1734387230309,2.2817,219.08,219.04,2.282]
[1734387230607,2.2817,219.08,219.05,5.12430955]
[1734387230808,2.2817,219.08,219.06,5.12430955]
[1734387231009,2.2817,219.08,219.04,2.282]
[1734387231204,2.2817,219.08,219.05,5.12358436]
[1734387231411,7.67842515,219.09,219.05,5.12358436]
[1734387231615,9.96002515,219.09,219.06,5.12358436]
[1734387231809,9.96002515,219.09,219.04,2.282]
[1734387232011,9.96002515,219.09,219.05,5.12253431]
[1734387232208,9.96002515,219.09,219.06,5.12253431]
[1734387232415,9.96002515,219.09,219.04,2.282]
[1734387232714,9.96002515,219.09,219.05,5.12196524]
[1734387232914,9.96002515,219.09,219.06,5.12196524]
[1734387233115,9.96002515,219.09,219.04,2.282]
[1734387233418,9.96002515,219.09,219.05,5.12103413]
[1734387233609,9.96002515,219.09,219.06,5.12103413]
[1734387233812,9.96002515,219.09,219.04,2.282]
[1734387234013,9.96002515,219.09,219.05,5.12095475]
[1734387234215,9.96002515,219.09,219.06,5.12095475]
[1734387234415,9.96002515,219.09,219.04,2.282]
[1734387234614,9.96002515,219.09,219.05,5.11912542]
[1734387234810,9.96002515,219.09,219.04,2.282]
[1734387235020,9.96002515,219.09,219.05,5.11944868]
[1734387235315,9.96002515,219.09,219.04,2.282]
[1734387235519,9.96002515,219.09,219.05,5.11892651]
[1734387235813,9.96002515,219.09,219.04,2.282]
[1734387239619,7.84002515,219.09,219.04,2.282]
[1734387239819,9.96002515,219.09,219.05,5.12017547]
[1734387240120,7.84002515,219.09,219.04,2.282]
[1734387240422,9.96002515,219.09,219.05,5.11935218]
[1734387240623,9.96002515,219.09,219.04,2.282]
[1734387240822,9.96002515,219.09,219.05,5.11864755]
[1734387241120,9.96002515,219.09,219.04,2.282]
[1734387241319,9.96002515,219.09,219.05,5.11905962]
[1734387241515,9.96002515,219.09,219.04,2.282]
[1734387241711,9.96002515,219.09,219.05,5.11870752]
[1734387241917,9.96002515,219.09,219.04,2.282]
[1734387242118,9.96002515,219.09,219.05,5.11906529]
[1734387242320,9.96002515,219.09,219.04,2.282]
[1734387242514,9.96002515,219.09,219.05,5.1184827]
[1734387242720,9.96002515,219.09,219.04,2.282]
[1734387242915,9.96002515,219.09,219.05,5.11801342]
[1734387243120,9.96002515,219.09,219.06,5.11801342]
[1734387243323,9.96002515,219.09,219.04,2.282]
[1734387243521,9.96002515,219.09,219.05,5.11814191]
[1734387243720,9.96002515,219.09,219.06,5.11814191]
[1734387243916,9.96002515,219.09,219.04,2.282]
[1734387244118,9.96002515,219.09,219.05,5.11827337]
[1734387244319,9.96002515,219.09,219.06,5.11827337]
[1734387244620,9.96002515,219.09,219.04,2.282]
[1734387244820,9.96002515,219.09,219.05,5.11785706]
[1734387245025,9.96002515,219.09,219.06,5.11785706]
[1734387245218,9.96002515,219.09,219.04,2.282]
[1734387245423,9.96002515,219.09,219.05,5.1175857]
[1734387245618,9.96002515,219.09,219.04,2.282]
[1734387245619,9.96002515,219.09,219.06,5.1175857]
[1734387245826,9.96002515,219.09,219.04,2.282]
[1734387246224,9.96002515,219.09,219.05,5.11749791]
[1734387246424,9.96002515,219.09,219.04,2.282]
[1734387246627,9.96002515,219.09,219.05,5.11774705]
[1734387246827,9.96002515,219.09,219.06,5.11774705]
[1734387247130,9.96002515,219.09,219.04,2.282]
[1734387247427,9.96002515,219.09,219.05,5.11719888]
[1734387247623,9.96002515,219.09,219.04,2.282]
[1734387247928,9.96002515,219.09,219.05,5.11730954]
[1734387248129,9.96002515,219.09,219.04,2.282]
[1734387248328,9.96002515,219.09,219.05,5.11678376]
[1734387248541,9.96002515,219.09,219.04,2.282]
[1734387248728,9.96002515,219.09,219.05,5.11748462]
[1734387249031,9.96002515,219.09,219.04,2.282]
[1734387249224,9.96002515,219.09,219.05,5.11760102]
[1734387249429,9.96002515,219.09,219.05,2.282]
[1734387254728,7.67842515,219.09,219.01,1.5533]
[1734387254933,2.2819,219.07,219.02,15.59621428]
[1734387255135,2.2819,219.07,219.03,5.12077472]
[1734387255434,2.2819,219.07,219.02,2.2822]
[1734387255626,2.2819,219.07,219.03,7.40427436]
[1734387255826,2.2819,219.07,219.03,2.2822]
[1734387257324,2.2819,219.07,219.04,5.12275242]
[1734387257530,2.2819,219.07,219.03,2.2822]
[1734387260431,2.2819,219.07,219.01,1.5533]
[1734387260633,2.2819,219.07,219.02,7.40511228]
[1734387260927,2.2819,219.07,219.03,5.12291228]
[1734387261133,2.2819,219.07,219.02,2.2822]
[1734387261330,2.2819,219.07,219.03,5.12300282]
[1734387261527,2.2819,219.07,219.02,2.2822]
[1734387262137,2.2819,219.07,219.03,5.12244843]
[1734387262337,2.2819,219.07,219.02,2.2822]
[1734387262527,2.2819,219.07,219.03,7.40442467]
[1734387262732,2.282,219.05,219.01,1.5533]
[1734387262936,11.16383112,219.08,219.02,5.12267331]
[1734387263137,11.16383112,219.07,219.01,1.5533]
[1734387263335,11.16383112,219.07,219.02,5.12275906]
[1734387263532,13.44573112,219.06,219.02,2.2823]
[1734387263739,2.2819,219.06,219.02,2.2823]
[1734387264346,2.2818,219.07,219.03,2.2822]
[1734387265835,2.2818,219.07,219.01,1.5533]
[1734387266039,2.2818,219.07,219.02,7.40441498]
[1734387266237,2.2818,219.07,219.03,5.12211498]
[1734387266435,2.2818,219.07,219.02,2.2823]
[1734387266643,2.2818,219.07,219.03,5.12171585]
[1734387266844,2.2818,219.07,219.02,2.2823]
[1734387267044,2.2818,219.07,219.03,5.12180055]
[1734387267346,2.2818,219.07,219.02,2.2823]
[1734387268349,2.2818,219.07,219.03,5.12186843]
[1734387268546,2.2818,219.07,219.02,2.2823]
[1734387268739,2.2818,219.07,219.03,5.12179338]
[1734387268942,2.2818,219.07,219.02,2.2823]
[1734387270447,11.16957764,219.08,219.03,7.40387048]
[1734387270647,11.16957764,219.08,219.03,2.2821]
[1734387271145,11.16957764,219.08,219.04,2.2821]
[1734387271845,11.16957764,219.07,219.04,2.2821]
[1734387272042,2.2817,219.08,219.04,2.2821]
[1734387272247,13.4508228,219.08,219.04,2.2821]
[1734387272447,11.1691228,219.07,219.04,2.2821]
[1734387272752,2.2817,219.08,219.04,2.2821]
[1734387272946,13.45107187,219.08,219.04,2.2821]
[1734387273145,2.2817,219.08,219.04,2.2821]
[1734387273352,11.16937187,219.07,219.04,2.2821]
[1734387273545,2.2817,219.08,219.04,2.2821]
[1734387273742,13.45122521,219.08,219.04,2.2821]
[1734387274048,11.16952521,219.07,219.03,2.2821]
[1734387274251,2.2817,219.08,219.03,2.2821]
[1734387274450,13.45107085,219.08,219.03,2.2821]
[1734387275949,2.12,219.07,219.03,2.2821]
[1734387279148,4.4018,219.07,219.03,2.2821]
[1734387279549,4.4018,219.07,219.04,5.1139055]
[1734387279754,4.4018,219.07,219.04,2.282]
[1734387279755,2.12,219.07,219.04,2.282]
[1734387279956,2.12,219.07,219.05,5.1135041]
[1734387280253,2.12,219.07,219.04,2.282]
[1734387280445,2.12,219.07,219.05,5.11377546]
[1734387280644,2.12,219.07,219.04,2.282]
[1734387280845,2.12,219.07,219.05,5.11346391]
[1734387281048,2.12,219.07,219.04,2.282]
[1734387281253,2.12,219.07,219.05,5.11348563]
[1734387281558,2.12,219.07,219.04,2.282]
[1734387281849,2.12,219.07,219.05,5.11332974]
[1734387282055,2.12,219.07,219.04,2.282]
[1734387282252,2.12,219.07,219.05,5.1133587]
[1734387282451,2.12,219.07,219.04,2.282]
[1734387282648,2.12,219.07,219.05,5.11341252]
[1734387282846,2.12,219.07,219.03,2.2822]
[1734387283047,2.12,219.07,219.04,5.11339758]
[1734387283247,2.12,219.07,219.05,5.11339758]
[1734387283452,2.12,219.07,219.03,2.2822]
[1734387283657,2.12,219.07,219.04,5.11340373]
[1734387283856,2.12,219.07,219.05,5.11340373]
[1734387284057,2.12,219.07,219.03,2.2822]
[1734387284257,2.12,219.07,219.04,5.11331063]
[1734387284460,2.12,219.07,219.05,5.11331063]
[1734387284656,2.12,219.07,219.06,5.11331063]
[1734387284857,2.12,219.07,219.03,2.2822]
[1734387285158,2.12,219.07,219.04,5.11328167]
[1734387285360,2.12,219.07,219.05,5.11328167]
[1734387285656,2.12,219.07,219.03,2.2822]
[1734387285860,2.12,219.07,219.04,5.11352127]
[1734387286061,2.12,219.07,219.05,5.11352127]
[1734387286267,2.12,219.07,219.03,2.2822]
[1734387286459,2.12,219.07,219.04,5.1134955]
[1734387286664,2.12,219.07,219.05,5.1134955]
[1734387286860,2.12,219.07,219.03,2.2822]
[1734387287167,2.12,219.07,219.04,5.11315477]
[1734387287364,2.12,219.07,219.05,5.11315477]
[1734387287666,2.12,219.07,219.03,2.2822]
[1734387287867,2.12,219.07,219.04,5.11310756]
[1734387288165,2.12,219.07,219.05,5.11310756]
[1734387288367,2.12,219.07,219.03,2.2822]
[1734387288665,2.12,219.07,219.04,5.11344555]
[1734387288865,2.12,219.07,219.05,5.11344555]
[1734387289264,2.12,219.07,219.03,2.2822]
[1734387289462,2.12,219.07,219.04,5.11356622]
[1734387289668,2.12,219.07,219.05,5.11356622]
[1734387289970,2.12,219.07,219.03,2.2822]
[1734387290267,2.12,219.07,219.04,7.39538645]
[1734387290470,2.12,219.07,219.05,5.11338645]
[1734387290768,2.12,219.07,219.03,2.2822]
[1734387290966,2.12,219.07,219.04,5.11378163]
[1734387291168,2.12,219.07,219.05,5.11378163]
[1734387291366,4.4018,219.07,219.03,2.2822]
[1734387291658,2.12,219.07,219.04,7.39583666]
[1734387291864,2.12,219.07,219.05,5.11383666]
[1734387292068,2.12,219.07,219.04,2.282]
[1734387292370,2.12,219.07,219.05,5.11408597]
[1734387292572,4.4018,219.07,219.03,2.2821]
[1734387292770,4.4018,219.07,219.04,13.29730041]
[1734387292970,4.4018,219.07,219.05,5.11434631]
[1734387293174,4.4018,219.07,219.03,2.2821]
[1734387293474,4.4018,219.07,219.04,13.29707293]
[1734387293676,4.4018,219.07,219.05,5.11438121]
[1734387293975,4.4018,219.07,219.03,2.2821]
[1734387294181,2.2818,219.07,219.04,13.29722152]
[1734387294367,2.2818,219.07,219.05,5.11437029]
[1734387294670,2.2818,219.07,219.03,2.2821]
[1734387294875,2.2818,219.07,219.04,5.11423017]
[1734387295080,2.2818,219.07,219.05,5.11423017]
[1734387295374,2.2818,219.07,219.03,2.2821]
[1734387295569,2.2818,219.07,219.04,5.11698476]
[1734387295764,2.2818,219.07,219.05,5.11698476]
[1734387295967,2.2818,219.07,219.03,2.2821]
[1734387296170,2.2818,219.07,219.04,5.11693182]
[1734387296372,2.2818,219.07,219.05,5.11693182]
[1734387296573,2.2818,219.07,219.03,2.2821]
[1734387296774,2.2818,219.07,219.04,5.1169297]
[1734387296975,2.2818,219.07,219.05,5.1169297]
[1734387297175,2.2818,219.07,219.03,2.2821]
[1734387297475,2.2818,219.07,219.04,5.1168385]
[1734387297673,2.2818,219.07,219.05,5.1168385]
[1734387297874,2.2818,219.07,219.03,2.2821]
[1734387298172,2.2818,219.07,219.04,5.11683083]
[1734387298371,2.2818,219.07,219.05,5.11683083]
[1734387298574,2.2818,219.07,219.06,5.11683083]
[1734387298876,2.2818,219.07,219.03,2.2821]
[1734387299073,2.2818,219.07,219.04,5.12141196]
[1734387299279,2.2818,219.07,219.05,5.12141196]
[1734387299578,2.2818,219.07,219.03,2.2821]
[1734387299778,2.2818,219.07,219.04,5.12223391]
[1734387300079,4.4017,219.08,219.05,5.12223391]
[1734387300269,4.4017,219.08,219.03,2.2821]
[1734387300469,4.4017,219.08,219.04,5.12213729]
[1734387300671,4.4017,219.08,219.05,5.12213729]
[1734387300878,2.2818,219.07,219.03,2.2821]
[1734387301070,2.2818,219.07,219.04,5.12193874]
[1734387301270,2.2818,219.07,219.05,5.12193874]
[1734387301471,2.2818,219.07,219.03,2.2821]
[1734387301676,2.2818,219.07,219.04,13.3165173]
[1734387301874,2.2818,219.07,219.05,5.12173742]
[1734387302075,2.2818,219.07,219.06,5.12173742]
[1734387302277,2.2818,219.07,219.06,5.12185029]
[1734387306184,2.2818,219.07,219.02,2.2823]
[1734387306483,2.2818,219.07,219.03,13.32847652]
[1734387306678,2.2818,219.07,219.04,13.32840757]
[1734387306878,2.2818,219.07,219.05,13.32840757]
[1734387307074,2.2818,219.07,219.06,5.1263106]
[1734387307686,2.12,219.08,219.01,1.5533]
[1734387307882,2.282,219.05,219.01,1.5533]